[Event "Queen Rapid Challenge 2024"]
[Site "Bucharest"]
[Date "2024.03.10"]
[Round "1.9"]
[White "Cretescu, Emma"]
[Black "Sandu, Mihaela"]
[Result "0-1"]
[ECO "D05"]
[WhiteElo "1692"]
[BlackElo "2270"]
[Annotator "TA"]
[PlyCount "126"]
[EventDate "2024.03.09"]
[EventType "rapid"]
[EventCountry "ROU"]
[SourceTitle "playchess.com"]
[Source "ChessBase"]
[SourceQuality "1"]
[TimeControl "900+10"]

{[%evp 13,126,9,49,14,0,10,12,0,0,0,0,0,0,0,-4,-8,-9,-6,0,0,7,-3,47,43,48,0,47,30,56,24,31,0,41,-206,-198,-191,-194,-196,-125,-131,-123,-142,-139,-147,-134,-137,-143,-147,-80,-114,-114,-118,-119,-137,-118,-118,-102,-102,-102,-95,-96,-96,-96,-106,-100,-108,-101,-110,-106,-168,-127,-201,-126,-211,-124,-131,-124,-126,-119,-119,-119,-127,-126,-142,-139,-440,-192,-227,-214,-351,-276,-599,-602,-576,-545,-557,-429,-436,-436,-1172,-475,-1407,-1314,-1492,-1534,-6693,-5616,-5933,-4788,-2229,-3575,-29972,-12848,-6637,-5669]} 1. d4 {[%emt 0:00:12]} Nf6 {[%emt 0:00:13]} 2. Nf3 {[%emt 0:00:07]} e6 {[%emt 0:00:08]} 3. e3 {[%emt 0:00:07]} d5 {[%emt 0:00:08]} 4. Bd3 {[%emt 0:00:10]} c5 {[%emt 0:00:13]} 5. b3 {[%emt 0:00:12]} Nc6 {[%emt 0:00:09]} 6. Bb2 {[%emt 0:00:11]} Bd6 {[%emt 0:00:44]} 7. O-O {[%emt 0:00:19]} Qc7 {[%emt 0:00:07]} 8. a3 {[%emt 0:00:34]} e5 {[%emt 0:00:14]} 9. dxe5 {[%emt 0:00:45]} Nxe5 {[%emt 0:00:07]} 10. Nxe5 {[%emt 0:00:14] Die Stellung ist ausgeglichen.} (10. Bb5+ {ist vielschichtiger.} Ke7 11. Nbd2 Rd8 12. h3) 10... Bxe5 {[%emt 0:00:06]} 11. Bxe5 {[%emt 0:00:12]} Qxe5 {[%emt 0:00:07]} 12. Nd2 {[%emt 0:00:40]} O-O {[%emt 0:00:07]} 13. c4 {[%emt 0:00:41]} Bg4 {[%emt 0:00:36]} 14. Be2 {[%emt 0:01:35]} Bxe2 {[%emt 0:00:24]} 15. Qxe2 {[%emt 0:00:07]} d4 {[%emt 0:01:15]} 16. Nf3 {[%emt 0:01:55]} Qe4 {[%emt 0:00:07]} 17. Nd2 {[%emt 0:01:08]} Qf5 {[%emt 0:02:00]} (17... Qe6 $11) 18. exd4 $14 {[%emt 0:01:42]} cxd4 {[%emt 0:00:18]} 19. Rad1 {[%emt 0:00:56]} (19. Qf3 $14 Qc2 20. Rfd1) 19... Rad8 {[%emt 0:00:21]} (19... Qc2 $11) 20. Qf3 {[%emt 0:01:49]} Qa5 {[%emt 0:03:07]} 21. Qxb7 {[%emt 0:01:25]} Qxa3 {[%emt 0:00:08]} 22. Rfe1 {[%emt 0:00:24]} Rfe8 {[%emt 0:00:36]} 23. Ne4 $2 {[%emt 0:01:04]} (23. Rxe8+ $14 Nxe8 24. h3) 23... Nxe4 {[%emt 0:00:19]} 24. Rxe4 {[%emt 0:00:08]} Rxe4 {[%emt 0:01:09]} 25. Qxe4 {[%emt 0:00:06]} Qxb3 $19 {[%emt 0:00:46][%mdl 4096] Endspiel. KQR-KQR} (25... d3 $1 $19 26. g3 Qxb3) 26. Qd3 {[%emt 0:00:33]} (26. Rxd4 $2 {ist ein Selbstmatt.} Qd1+ 27. Rxd1 Rxd1+) 26... Qb4 {[%emt 0:00:31]} 27. h3 {[%emt 0:00:28]} h6 {[%emt 0:00:17]} 28. Rb1 {[%emt 0:00:17]} Qe7 {[%emt 0:00:25] Schwarz steht aktiver.} 29. Rc1 {[%emt 0:00:30]} Qc5 {[%emt 0:00:17]} 30. Rb1 {[%emt 0:00:20]} Rc8 {[%emt 0:00:51]} (30... a5 $142 31. Ra1 g6) 31. Rd1 {[%emt 0:00:30]} Qxc4 {[%emt 0:00:24]} 32. Qxd4 {[%emt 0:00:08]} Qxd4 {[%emt 0:00:17]} 33. Rxd4 $17 {[%emt 0:00:06] KR-KR} a5 {[%emt 0:00:29]} 34. Ra4 {[%emt 0:00:26]} Ra8 {[%emt 0:00:06]} 35. Kf1 {[%emt 0:00:07]} f5 {[%emt 0:00:12]} 36. Ke2 {[%emt 0:00:11]} Kf7 {[%emt 0:00:06]} 37. Kd3 {[%emt 0:00:08]} Kf6 {[%emt 0:00:07]} 38. Kc4 {[%emt 0:00:24]} Ke5 {[%emt 0:00:06]} 39. Kd3 {[%emt 0:00:18]} Rd8+ {[%emt 0:00:12]} 40. Ke3 {[%emt 0:00:09]} Rd5 {[%emt 0:00:07]} 41. f4+ {[%emt 0:00:10]} (41. Rc4 $17) 41... Ke6 {[%emt 0:00:09]} 42. Kf3 {[%emt 0:00:09]} (42. g4 $17) 42... Rb5 {[%emt 0:00:07]} 43. Kg3 {[%emt 0:00:09]} (43. g4 $17) 43... Kf6 {[%emt 0:00:20]} (43... Kd6 $19 44. Kh4 g6) 44. Kf3 {[%emt 0:00:09]} Rd5 {[%emt 0:00:22]} 45. g4 {[%emt 0:00:18]} Rb5 {[%emt 0:00:23]} 46. Kg3 {[%emt 0:00:14]} Ke6 {[%emt 0:00:07]} 47. Kf3 {[%emt 0:00:08]} Kd6 {[%emt 0:00:09]} 48. Ke3 {[%emt 0:00:08]} Kc6 {[%emt 0:00:11]} 49. Kf3 $2 {[%emt 0:00:10][%mdl 8192]} (49. Kd2 $17 {leistet mehr Widerstand.}) 49... Rc5 {[%emt 0:00:08]} (49... Rb3+ $142 50. Kg2 Kb5) 50. gxf5 {[%emt 0:00:09]} Rxf5 {[%emt 0:00:07]} 51. Kg4 {[%emt 0:00:07]} (51. Ke4 $142 Rb5 52. Rc4+ Kb6 53. Rc3) 51... Rc5 {[%emt 0:00:09]} 52. Kf3 $2 {[%emt 0:00:13]} (52. Ra1) 52... Kb5 $19 {[%emt 0:00:06]} 53. Ra1 {[%emt 0:00:11]} a4 {[%emt 0:00:07] [#] Droht stark ...Rc3+.} 54. Ke3 {[%emt 0:00:10]} Rc3+ {[%emt 0:00:09]} 55. Kd2 {[%emt 0:00:09]} Rxh3 {[%emt 0:00:10]} 56. Kc2 {[%emt 0:00:12]} (56. Rg1 $142 Rf3 57. Rxg7) 56... Rf3 {[%emt 0:00:18]} (56... Rh2+ $142 57. Kc3 a3 (57... Rh3+ $2 58. Kb2 $19) 58. Rb1+ Kc5) 57. f5 {[%emt 0:00:08]} (57. Rg1 $142 Kb4 (57... Rxf4 58. Rxg7 Kb4 59. Re7 $19) 58. Rxg7) 57... Rxf5 {[%emt 0:00:06]} 58. Kb2 {[%emt 0:00:15]} Kb4 {[%emt 0:00:12]} 59. Kc2 {[%emt 0:00:16]} g5 {[%emt 0:00:12]} 60. Rh1 {[%emt 0:00:11]} Rf6 {[%emt 0:00:08] [#] Weiss muss nun ...Rf2+ beachten.} 61. Rb1+ {[%emt 0:00:09]} Kc4 {[%emt 0:00:06] ( -> ...Rf2+)} 62. Rd1 {[%emt 0:00:18]} g4 {[%emt 0:00:10]} (62... Rf2+ $142 63. Kc1 g4 64. Rg1 Kc3 65. Re1 Rf3 66. Kb1 Kb3 67. Kc1 a3 68. Kb1 g3 69. Kc1 a2 70. Kd2 Kb2 71. Rg1 a1=Q (71... a1=B $2 72. Rh1 $19) 72. Rxa1 Kxa1 73. Ke2 Rb3 (73... g2 {führt zum Matt.} 74. Kxf3 g1=Q 75. Kf4 Qg5+ 76. Ke4 Kb2 77. Kf3 Kc2 78. Kf2 Kd2 79. Kf3 Kd3 80. Kf2 Qg4 81. Kf1 Ke3 82. Ke1 Qg1#) 74. Kf1 Rb2 75. Kg1 h5 76. Kh1 h4 77. Kg1 h3 78. Kf1 h2 79. Ke1 h1=Q#) 63. Rg1 {[%emt 0:00:08]} h5 {[%emt 0:00:07] Gewichteter Fehlerwert: Weiß=0.89/Schwarz=0.41.  Verlustzug:     	Weiß=2     	---        Fehler:       	Weiß=8     	Schwarz=7     Ungenau:       	Weiß=3     	Schwarz=2     OK:         	Weiß=14    	Schwarz=18    Bester:       	Weiß=2     	Schwarz=1} 0-1

[Event "Queen Rapid Challenge 2024"]
[Site "Bucharest"]
[Date "2024.03.10"]
[Round "1.10"]
[White "Marin, Alexia-Iuliana"]
[Black "Pirvulescu, Ekaterina"]
[Result "1-0"]
[ECO "E07"]
[WhiteElo "1573"]
[BlackElo "2091"]
[Annotator "RC"]
[PlyCount "95"]
[EventDate "2024.03.09"]
[EventType "rapid"]
[EventCountry "ROU"]
[SourceTitle "playchess.com"]
[Source "ChessBase"]
[SourceQuality "1"]
[TimeControl "900+10"]

1. d4 {[%emt 0:00:12]} Nf6 {[%emt 0:00:15]} 2. Nf3 {[%emt 0:00:07]} e6 {[%emt 0:00:09]} 3. g3 {[%emt 0:00:06]} d5 {[%emt 0:00:07]} 4. Bg2 {[%emt 0:00:08]} Be7 {[%emt 0:00:06]} 5. c4 {[%emt 0:00:07]} Nbd7 {[%emt 0:00:15]} 6. Qc2 {[%emt 0:00:15]} b6 {[%emt 0:00:51]} 7. cxd5 {[%emt 0:01:09]} exd5 {[%emt 0:00:34]} 8. Ne5 {[%emt 0:00:16]} Bb7 {[%emt 0:01:14]} 9. Nc6 {[%emt 0:00:24]} Bxc6 {[%emt 0:00:53]} 10. Qxc6 {[%emt 0:00:07]} O-O {[%emt 0:03:36]} 11. Bxd5 {[%emt 0:02:15]} Nxd5 {[%emt 0:00:13]} 12. Qxd5 {[%emt 0:00:07]} Re8 {[%emt 0:04:05]} 13. O-O {[%emt 0:00:22]} Nf6 {[%emt 0:00:51]} 14. Qxd8 {[%emt 0:00:17]} Raxd8 {[%emt 0:00:06]} 15. e3 {[%emt 0:00:08]} c5 {[%emt 0:00:31]} 16. dxc5 {[%emt 0:00:13]} Bxc5 {[%emt 0:00:07]} 17. a3 {[%emt 0:01:44]} a5 {[%emt 0:01:05]} 18. Nc3 {[%emt 0:00:07]} Ne4 {[%emt 0:01:08]} 19. Na4 {[%emt 0:00:34]} Nd2 {[%emt 0:01:09]} 20. Bxd2 {[%emt 0:00:46]} Rxd2 {[%emt 0:00:06]} 21. Nxc5 {[%emt 0:00:11]} bxc5 {[%emt 0:00:07]} 22. Rac1 {[%emt 0:00:07]} Rc8 {[%emt 0:00:31]} 23. Rfd1 {[%emt 0:00:19]} Rxd1+ {[%emt 0:00:32]} 24. Rxd1 {[%emt 0:00:06]} g6 {[%emt 0:00:06]} 25. Rc1 {[%emt 0:00:14]} f5 {[%emt 0:00:23]} 26. Rc4 {[%emt 0:00:07]} Kf7 {[%emt 0:00:08]} 27. b4 {[%emt 0:00:52]} axb4 {[%emt 0:00:06]} 28. axb4 {[%emt 0:00:06]} Ke6 {[%emt 0:00:06]} 29. Rxc5 {[%emt 0:00:32]} Rxc5 {[%emt 0:00:08]} 30. bxc5 {[%emt 0:00:06]} Kd5 {[%emt 0:00:06]} 31. Kg2 {[%emt 0:00:06]} Kxc5 {[%emt 0:00:06]} 32. Kf3 {[%emt 0:00:06]} Kd5 {[%emt 0:00:05]} 33. Kf4 {[%emt 0:00:06]} h6 {[%emt 0:00:07]} 34. h4 {[%emt 0:00:08]} Ke6 {[%emt 0:00:17]} 35. g4 {[%emt 0:01:37]} Kf6 {[%emt 0:00:33]} 36. gxf5 {[%emt 0:00:09]} gxf5 {[%emt 0:00:06]} 37. h5 {[%emt 0:00:10]} Ke6 {[%emt 0:00:15]} 38. f3 {[%emt 0:00:10]} Kf6 {[%emt 0:00:16]} 39. e4 {[%emt 0:00:06]} fxe4 {[%emt 0:00:07]} 40. fxe4 {[%emt 0:00:06]} Ke6 {[%emt 0:00:06]} 41. e5 {[%emt 0:00:06]} Ke7 {[%emt 0:00:09]} 42. Kf5 {[%emt 0:00:08]} Kf7 {[%emt 0:00:05]} 43. e6+ {[%emt 0:00:24]} Ke7 {[%emt 0:00:07]} 44. Ke5 {[%emt 0:00:06]} Ke8 {[%emt 0:00:15]} 45. Kf6 {[%emt 0:00:06]} Kf8 {[%emt 0:00:06]} 46. Kg6 {[%emt 0:00:07]} Ke7 {[%emt 0:00:07]} 47. Kxh6 {[%emt 0:00:06]} Kxe6 {[%emt 0:00:08]} 48. Kg7 {[%emt 0:00:06]} 1-0

[Event "Queen Rapid Challenge 2024"]
[Site "Bucharest"]
[Date "2024.03.10"]
[Round "2.1"]
[White "Sava, Ana-Maria"]
[Black "Bulmaga, Irina"]
[Result "0-1"]
[ECO "A47"]
[WhiteElo "1897"]
[BlackElo "2429"]
[Annotator "TA"]
[PlyCount "96"]
[EventDate "2024.03.09"]
[EventType "rapid"]
[EventCountry "ROU"]
[SourceTitle "playchess.com"]
[Source "ChessBase"]
[SourceQuality "1"]
[TimeControl "900+10"]

{[%evp 9,96,0,22,12,29,6,4,-2,18,8,6,-36,-35,-45,-41,-43,-30,-29,-6,0,10,2,18,-34,25,20,18,0,6,0,22,-82,-85,-101,-34,-39,-18,-8,-24,-45,-44,-143,-150,-128,-143,-161,-168,-160,-157,-187,-189,-238,-231,-230,-236,-240,-247,-270,-270,-331,-258,-330,-317,-391,-381,-444,-393,-412,-390,-425,-446,-433,-419,-434,-414,-506,-481,-920,-864,-827,-583,-782,-749,-2196,-2266,-2071,-2040,-1362,-1421]} 1. d4 {[%emt 0:00:12]} Nf6 {[%emt 0:00:12]} 2. Nf3 {[%emt 0:00:06]} e6 {[%emt 0:00:07]} 3. e3 {[%emt 0:00:07]} b6 {[%emt 0:00:07]} 4. Bd3 {[%emt 0:00:08]} Bb7 {[%emt 0:00:06]} 5. Nbd2 {[%emt 0:00:11]} d6 {[%emt 0:00:16]} 6. O-O {[%emt 0:00:11]} g6 {[%emt 0:00:14]} 7. b3 {[%emt 0:00:08]} Bg7 {[%emt 0:00:06]} 8. Bb2 {[%emt 0:00:07] The position is equal.} Nbd7 {[%emt 0:00:13]} 9. e4 {[%emt 0:00:08]} O-O {[%emt 0:00:13]} 10. Ne1 {[%emt 0:00:33]} e5 {[%emt 0:00:16]} 11. d5 {[%emt 0:00:08]} Nc5 {[%emt 0:00:15]} 12. Qe2 {[%emt 0:00:27]} Nh5 {[%emt 0:00:19]} 13. g3 {[%emt 0:00:13] Dodges Nf4} Bc8 {[%emt 0:00:16]} 14. Bb5 {[%emt 0:00:22]} Bh3 {[%emt 0:00:52]} 15. Ng2 {[%emt 0:00:07]} Bh6 {[%emt 0:00:31]} 16. b4 {[%emt 0:00:42]} (16. f3 $11) 16... Nd7 {[%emt 0:00:52]} (16... Bxd2 $15 17. bxc5 Bb4) 17. Bc1 {[%emt 0:02:20]} a5 {[%emt 0:00:33]} 18. bxa5 {[%emt 0:00:12]} bxa5 {[%emt 0:00:21]} 19. a4 {[%emt 0:00:07]} Nc5 {[%emt 0:00:17]} 20. Nc4 {[%emt 0:00:31]} (20. Nb3 $11 {remains equal.} Nxb3 21. cxb3 Bxc1 22. Rfxc1) 20... Bxc1 $17 {[%emt 0:00:23]} 21. Rfxc1 {[%emt 0:00:17]} Bxg2 {[%emt 0:00:23]} ({Better is} 21... f5 $17 22. exf5 Qg5) 22. Kxg2 $15 {[%emt 0:00:08]} f5 {[%emt 0:00:38]} 23. exf5 {[%emt 0:04:08]} Qg5 {[%emt 0:00:10] [#] ...Nf4+ would now be deadly.} 24. Kh1 {[%emt 0:00:27]} Qxf5 {[%emt 0:00:56]} 25. Ne3 {[%emt 0:00:58] Black keeps a firm grip on the game.} ({White should play} 25. Kg2 $15) 25... Qxf2 $17 {[%emt 0:00:16] Black is more active.} 26. Qxf2 {[%emt 0:00:10]} Rxf2 {[%emt 0:00:07]} 27. Rf1 {[%emt 0:00:20]} Rxf1+ {[%emt 0:00:30]} 28. Rxf1 {[%emt 0:00:07]} Kg7 {[%emt 0:00:14]} 29. Kg2 {[%emt 0:00:07]} Nf6 {[%emt 0:00:10]} 30. c4 {[%emt 0:01:00]} (30. Nd1 $142) 30... Rb8 $19 {[%emt 0:00:18]} 31. Nd1 {[%emt 0:01:45]} Nfe4 {[%emt 0:00:13]} 32. Nb2 {[%emt 0:00:07]} h5 {[%emt 0:00:39]} 33. h4 {[%emt 0:00:24]} Nf6 {[%emt 0:00:51] A dynamic duo of knights.} 34. Rf2 {[%emt 0:00:18]} Rf8 {[%emt 0:00:11]} 35. Bc6 {[%emt 0:00:23]} Rf7 {[%emt 0:00:20]} ({Don't play} 35... Rb8 36. Nd1 $19) 36. Bb5 {[%emt 0:00:10]} Re7 {[%emt 0:00:07]} 37. Re2 {[%emt 0:00:12]} e4 {[%emt 0:00:52]} 38. Nd1 {[%emt 0:00:08]} Ng4 {[%emt 0:00:09]} 39. Nf2 {[%emt 0:00:16]} Nxf2 {[%emt 0:01:00]} 40. Kxf2 {[%emt 0:00:14][%mdl 4096] Endgame. KRB-KRN} Rf7+ {[%emt 0:00:12]} 41. Kg2 {[%emt 0:00:07]} Rf5 {[%emt 0:00:15]} ({Resist} 41... Rf3 42. Rf2 Rc3 43. Be8 $19) 42. Re3 {[%emt 0:00:17]} Kf6 {[%emt 0:00:08] [#] aiming for ...Ke5. Black is clearly winning.} 43. Bc6 {[%emt 0:00:13]} (43. Be8 $142) 43... Ke5 {[%emt 0:00:07]} 44. Be8 {[%emt 0:00:09]} Rf6 {[%emt 0:00:10]} 45. Re2 {[%emt 0:00:11]} Kd4 {[%emt 0:00:09]} 46. Rf2 {[%emt 0:00:12]} Rxf2+ {[%emt 0:00:18]} 47. Kxf2 {[%emt 0:00:05]} Nd3+ {[%emt 0:00:10]} 48. Ke2 {[%emt 0:00:07]} Ne5 {[%emt 0:00:07] Weighted Error Value: White=0.53/Black=0.16 (very precise) .  Mistake:       	White=5     	Black=2      Inaccurate:     	White=2     	---        OK:         	White=6     	Black=21     Best:        	White=2     	Black=3} (48... Kxc4 49. Bxg6 Kxd5 50. Bxh5 $17) 0-1

[Event "Queen Rapid Challenge 2024"]
[Site "Bucharest"]
[Date "2024.03.10"]
[Round "2.2"]
[White "Obada, Ema"]
[Black "Didiliuc, Dariana-Gabriela"]
[Result "1-0"]
[ECO "C06"]
[WhiteElo "1976"]
[BlackElo "1917"]
[Annotator "NA RC"]
[PlyCount "49"]
[EventDate "2024.03.09"]
[EventType "rapid"]
[EventCountry "ROU"]
[SourceTitle "playchess.com"]
[Source "ChessBase"]
[SourceQuality "1"]
[TimeControl "900+10"]

1. e4 {[%emt 0:00:12]} e6 {[%emt 0:00:12]} 2. d4 {[%emt 0:00:07]} d5 {[%emt 0:00:07]} 3. Nd2 {[%emt 0:00:07]} Nf6 {[%emt 0:00:10]} 4. e5 {[%emt 0:00:07]} Nfd7 {[%emt 0:00:07]} 5. Bd3 {[%emt 0:00:08]} c5 {[%emt 0:00:08]} 6. c3 {[%emt 0:00:07]} Nc6 {[%emt 0:00:12]} 7. Ne2 {[%emt 0:00:14]} cxd4 {[%emt 0:00:13]} 8. cxd4 {[%emt 0:00:07]} f6 {[%emt 0:00:10]} 9. exf6 {[%emt 0:00:14]} Nxf6 {[%emt 0:00:08]} 10. Nf3 {[%emt 0:00:08]} Bd6 {[%emt 0:00:14]} 11. O-O {[%emt 0:00:11]} O-O {[%emt 0:00:15]} 12. Bf4 {[%emt 0:00:24]} Bxf4 {[%emt 0:00:50]} 13. Nxf4 {[%emt 0:00:06]} Qd6 {[%emt 0:00:07]} 14. g3 {[%emt 0:01:02]} e5 {[%emt 0:00:52]} 15. dxe5 {[%emt 0:00:57]} Nxe5 {[%emt 0:00:08]} 16. Nxe5 {[%emt 0:00:31]} Qxe5 {[%emt 0:00:19]} 17. Qb3 {[%emt 0:00:41]} b6 {[%emt 0:01:11]} 18. Rfe1 {[%emt 0:00:11]} Qd6 {[%emt 0:00:21]} 19. Rad1 {[%emt 0:00:35]} Bb7 {[%emt 0:00:27]} 20. Bf1 {[%emt 0:02:39]} Kh8 {[%emt 0:01:30]} 21. Bg2 {[%emt 0:00:21]} Rfd8 {[%emt 0:00:10]} 22. Re6 {[%emt 0:00:54]} Qd7 {[%emt 0:00:41]} 23. Bh3 {[%emt 0:02:55]} Qf7 {[%emt 0:00:50]} 24. Rde1 {[%emt 0:00:47]} Ne4 {[%emt 0:00:16]} 25. R6xe4 {[%emt 0:00:10]} 1-0

[Event "Queen Rapid Challenge 2024"]
[Site "Bucharest"]
[Date "2024.03.10"]
[Round "2.3"]
[White "Hoanca, Alexia-Ioana"]
[Black "Sgircea, Silvia-Raluca"]
[Result "1-0"]
[ECO "B34"]
[WhiteElo "1849"]
[BlackElo "2224"]
[Annotator "RC"]
[PlyCount "91"]
[EventDate "2024.03.09"]
[EventType "rapid"]
[EventCountry "ROU"]
[SourceTitle "playchess.com"]
[Source "ChessBase"]
[SourceQuality "1"]
[TimeControl "900+10"]

1. e4 {[%emt 0:00:12]} c5 {[%emt 0:00:11]} 2. Nf3 {[%emt 0:00:06]} Nc6 {[%emt 0:00:07]} 3. d4 {[%emt 0:00:10]} cxd4 {[%emt 0:00:06]} 4. Nxd4 {[%emt 0:00:07]} g6 {[%emt 0:00:07]} 5. Nc3 {[%emt 0:00:11]} Bg7 {[%emt 0:00:06]} 6. Be3 {[%emt 0:00:08]} Nf6 {[%emt 0:00:10]} 7. Nxc6 {[%emt 0:00:12]} bxc6 {[%emt 0:00:07]} 8. e5 {[%emt 0:00:07]} Ng8 {[%emt 0:00:07]} 9. Bd4 {[%emt 0:00:07]} Qc7 {[%emt 0:01:48]} 10. f4 {[%emt 0:02:31]} f6 {[%emt 0:00:10]} 11. Qe2 {[%emt 0:01:01]} fxe5 {[%emt 0:03:07]} 12. Bxe5 {[%emt 0:00:52]} Bxe5 {[%emt 0:00:07]} 13. fxe5 {[%emt 0:00:07]} Nh6 {[%emt 0:00:31]} 14. O-O-O {[%emt 0:00:30]} Rb8 {[%emt 0:01:26]} 15. h3 {[%emt 0:02:36]} Nf7 {[%emt 0:00:58]} 16. e6 {[%emt 0:02:32]} Qf4+ {[%emt 0:00:08]} 17. Qd2 {[%emt 0:00:08]} Qxd2+ {[%emt 0:00:12]} 18. Rxd2 {[%emt 0:00:07]} dxe6 {[%emt 0:00:07]} 19. Bc4 {[%emt 0:00:37]} Nd6 {[%emt 0:00:39]} 20. Bb3 {[%emt 0:00:26]} Rf8 {[%emt 0:01:14]} 21. Re1 {[%emt 0:00:43]} Rf6 {[%emt 0:00:09]} 22. Rde2 {[%emt 0:01:12]} Kf7 {[%emt 0:00:14]} 23. Re5 {[%emt 0:00:46]} Rb4 {[%emt 0:00:49]} 24. Na4 {[%emt 0:00:38]} Rbf4 {[%emt 0:00:31]} 25. Nc5 {[%emt 0:00:46]} Rf1 {[%emt 0:01:35]} 26. Bxe6+ {[%emt 0:00:26]} Bxe6 27. Rxe6 {[%emt 0:00:07]} Rxe1+ {[%emt 0:00:14]} 28. Rxe1 {[%emt 0:00:06]} Rf2 {[%emt 0:00:06]} 29. Nd3 {[%emt 0:00:22]} Rxg2 {[%emt 0:00:41]} 30. Ne5+ {[%emt 0:00:14]} Ke8 {[%emt 0:01:50]} 31. Nxc6 {[%emt 0:00:21]} Nf5 {[%emt 0:01:10]} 32. Nxa7 {[%emt 0:00:32]} Rh2 {[%emt 0:00:07]} 33. b4 {[%emt 0:00:22]} Kd7 {[%emt 0:00:27]} 34. b5 {[%emt 0:00:21]} Kc7 {[%emt 0:00:18]} 35. a4 {[%emt 0:00:26]} Kb6 {[%emt 0:00:08]} 36. Nc6 {[%emt 0:00:09]} Rxh3 {[%emt 0:00:26]} 37. Nxe7 {[%emt 0:00:15]} Nd4 {[%emt 0:00:15]} 38. Nd5+ {[%emt 0:00:28]} Kc5 {[%emt 0:00:11]} 39. Nc7 {[%emt 0:00:15]} Rh2 {[%emt 0:00:20]} 40. Na6+ {[%emt 0:00:11]} Kb6 {[%emt 0:00:25]} 41. Kb1 {[%emt 0:00:11]} Nxc2 {[%emt 0:00:14]} 42. Re6+ {[%emt 0:00:11]} Kb7 {[%emt 0:00:10]} 43. Nc5+ {[%emt 0:00:07]} Kc7 {[%emt 0:00:07]} 44. Rc6+ {[%emt 0:00:06]} Kd8 {[%emt 0:00:06]} 45. Nb7+ {[%emt 0:00:09]} Kd7 {[%emt 0:00:09]} 46. Rxc2 {[%emt 0:00:06]} 1-0

[Event "Queen Rapid Challenge 2024"]
[Site "Bucharest"]
[Date "2024.03.10"]
[Round "2.4"]
[White "Raeva, Elitsa"]
[Black "Dobre, Ana-Margareta-Alexan"]
[Result "1-0"]
[ECO "A46"]
[WhiteElo "2185"]
[BlackElo "1914"]
[Annotator "RC"]
[PlyCount "56"]
[EventDate "2024.03.09"]
[EventType "rapid"]
[EventCountry "ROU"]
[SourceTitle "playchess.com"]
[Source "ChessBase"]
[SourceQuality "1"]
[TimeControl "900+10"]

1. d4 {[%emt 0:00:12]} Nf6 {[%emt 0:00:13]} 2. Nf3 {[%emt 0:00:08]} e6 {[%emt 0:00:08]} 3. Bf4 {[%emt 0:00:15]} c5 {[%emt 0:00:07]} 4. e3 {[%emt 0:00:08]} Nc6 {[%emt 0:00:11]} 5. c3 {[%emt 0:00:13]} cxd4 {[%emt 0:00:33]} 6. exd4 {[%emt 0:00:08]} b6 {[%emt 0:00:40]} 7. Bd3 {[%emt 0:00:13]} Bb7 {[%emt 0:00:06]} 8. O-O {[%emt 0:00:09]} Be7 {[%emt 0:00:43]} 9. Nbd2 {[%emt 0:00:08]} Nd5 {[%emt 0:00:18]} 10. Bg3 {[%emt 0:00:12]} f5 {[%emt 0:00:48]} 11. h3 {[%emt 0:00:07]} O-O {[%emt 0:00:38]} 12. Re1 {[%emt 0:00:09]} Qe8 {[%emt 0:02:00]} 13. a3 {[%emt 0:00:23]} h6 {[%emt 0:02:48]} 14. c4 {[%emt 0:00:33]} Nf6 {[%emt 0:00:06]} 15. d5 {[%emt 0:00:40]} Nd8 {[%emt 0:00:10]} 16. d6 {[%emt 0:00:21]} Nh5 {[%emt 0:00:16]} 17. dxe7 {[%emt 0:00:12]} Qxe7 {[%emt 0:00:07]} 18. Bh2 {[%emt 0:00:09]} g5 {[%emt 0:00:12]} 19. Ne5 {[%emt 0:00:31]} g4 {[%emt 0:01:13]} 20. hxg4 {[%emt 0:00:21]} Qg5 {[%emt 0:00:05]} 21. Ndf3 {[%emt 0:00:58]} Qg7 {[%emt 0:01:06]} 22. gxh5 {[%emt 0:00:13]} d6 {[%emt 0:00:05]} 23. Ng6 {[%emt 0:00:17]} Rf6 {[%emt 0:00:19]} 24. Bxd6 {[%emt 0:00:40]} Nf7 {[%emt 0:00:06]} 25. Be5 {[%emt 0:01:09]} Nxe5 {[%emt 0:00:09]} 26. Nfxe5 {[%emt 0:00:15]} Rd8 {[%emt 0:00:58]} 27. Qc2 {[%emt 0:00:29]} Rd4 {[%emt 0:00:06]} 28. Rad1 {[%emt 0:00:20]} Rh4 {[%emt 0:01:45]} 1-0